bitfinex-derivatives/quotes_ETHF0:USTF0_20250614
["timestamp","ask_amount","ask_price","bid_price","bid_amount"]
[1749920824491,9.15653523,2504.1,2503.8,1.6984]
[1749920824692,0.79839,2503.9,2503.8,2.49681]
[1749920825091,0.79837,2504.0,2503.9,0.79836]
[1749920825289,6.44637523,2504.1,2504.0,0.79836]
[1749920825491,0.79836,2504.0,2503.9,1.99141361]
[1749920825697,5.64803523,2504.1,2504.0,0.79836]
[1749920825992,0.79832,2504.1,2504.0,2.55346]
[1749920826295,7.64340523,2504.7,2504.0,6.15594361]
[1749920826595,0.7982,2504.5,2504.4,1.19304361]
[1749920826792,0.7982,2504.5,2504.4,1.7551]
[1749920826993,0.79818,2504.6,2504.4,2.55331]
[1749920827190,0.79818,2504.6,2504.4,1.7551]
[1749920827393,0.7982,2504.5,2504.4,2.55332]
[1749920827896,0.7982,2504.5,2504.4,2.55333]
[1749920828097,0.7982,2504.5,2504.4,1.7551]
[1749920828296,5.64803523,2504.7,2504.4,6.7551]
[1749920828490,3.2078,2504.8,2504.7,0.79811]
[1749920828491,0.7981,2504.8,2504.7,0.79811]
[1749920828898,0.7981,2504.8,2504.7,1.6886]
[1749920830097,0.7981,2504.8,2504.6,4.8732]
[1749920830098,0.7982,2504.5,2504.4,8.71072876]
[1749920830297,0.79818,2504.6,2504.4,7.518]
[1749920830509,8.65845,2505.1,2504.5,0.79819]
[1749920830699,0.79814,2504.7,2504.6,4.8964]
[1749920831096,0.79814,2504.7,2504.6,1.6886]
[1749920831395,0.79814,2504.7,2504.6,7.518]
[1749920831900,0.79823,2504.4,2504.3,5.83564]
[1749920832102,0.79823,2504.4,2504.3,35.7306]
[1749920832599,5.2031,2504.8,2504.1,0.00599892]
[1749920832802,0.79829,2504.2,2504.1,9.35259892]
[1749920833496,1.775,2504.6,2504.1,9.35259892]
[1749920833698,0.79826,2504.4,2504.3,3.2078]
[1749920833890,1.9955,2504.5,2504.1,7.52299892]
[1749920834094,0.79829,2504.2,2504.1,7.52299892]
[1749920834292,0.79829,2504.2,2504.1,10.00971892]
[1749920834496,0.79827,2504.3,2504.2,0.79829]
[1749920834698,1.99542,2504.6,2504.1,9.21139892]
[1749920834901,0.79823,2504.4,2504.3,4.00605]
[1749920835199,0.79823,2504.4,2504.3,3.2078]
[1749920835597,1.99526,2504.8,2504.3,3.2078]
[1749920835895,0.7982,2504.5,2504.4,1.6884]
[1749920836102,0.7982,2504.5,2504.4,9.2054]
[1749920836599,0.7982,2504.5,2504.4,10.00363]
[1749920837095,0.7982,2504.5,2504.4,9.2054]
[1749920837296,0.7982,2504.5,2504.4,1.6884]
[1749920837496,0.7982,2504.5,2504.4,9.1724]
[1749920837699,1.99544,2504.6,2504.4,7.484]
[1749920837906,0.7982,2504.5,2504.4,7.484]
[1749920839401,0.79829,2504.2,2504.1,35.64769892]
[1749920839997,0.79829,2504.2,2504.1,1.79569892]
[1749920840200,0.79829,2504.2,2504.1,35.64569892]
[1749920841298,0.79829,2504.2,2504.1,1.79569892]
[1749920841494,0.79829,2504.2,2504.1,0.00599892]
[1749920843408,5.79829,2504.2,2504.1,0.00599892]
[1749920843598,0.79839,2503.9,2503.8,1.6705]
[1749920843905,0.79842,2503.8,2503.7,10.6918]
[1749920844203,0.79852,2503.5,2503.4,3.2078]
[1749920844403,0.79852,2503.5,2503.4,4.00635]
[1749920845005,0.79852,2503.5,2503.4,3.2078]
[1749920847303,0.79858,2503.3,2503.2,0.00599892]
[1749920849507,0.79857,2503.4,2503.3,0.79857]
[1749920849800,0.79857,2503.4,2503.3,1.708]
[1749920850195,0.79857,2503.4,2503.3,3.4035]
[1749920850402,0.79858,2503.3,2503.2,1.82299892]
[1749920850608,0.79858,2503.3,2503.2,0.00599892]
[1749920852403,0.91977157,2503.3,2503.2,0.00599892]
[1749920854701,0.91977157,2503.3,2503.2,1.75709892]
[1749920855414,0.12119157,2503.3,2503.2,2.55570892]
[1749920855807,0.91977157,2503.3,2503.2,2.55570892]
[1749920856111,0.98786425,2503.3,2503.2,2.55570892]
[1749920856511,0.18928425,2503.3,2503.2,2.55570892]
[1749920858217,6.44652523,2503.6,2503.5,0.79852]
[1749920858513,6.44652523,2503.6,2503.5,37.83332]
[1749920858514,5.64803523,2503.6,2503.5,37.83332]
[1749920858713,0.00599892,2503.7,2503.6,0.79848]
[1749920859105,0.00599892,2503.7,2503.6,2.56668]
[1749920861416,0.00599892,2503.7,2503.6,4.37108]
[1749920861615,0.00599892,2503.7,2503.6,5.96180481]
[1749920862319,5.64803523,2504.2,2503.9,0.79836]
[1749920862611,0.79835,2504.1,2504.0,37.3848]
[1749920862812,5.64803523,2504.2,2504.1,0.79832]
[1749920863814,0.79832,2504.1,2504.0,38.18313]
[1749920864517,0.79832,2504.1,2504.0,37.3798]
[1749920865312,0.79832,2504.1,2504.0,3.5678]
[1749920865507,0.79832,2504.1,2504.0,37.3788]
[1749920865709,0.79832,2504.1,2504.0,38.17716]
[1749920867218,0.79832,2504.2,2504.1,0.7983]
[1749920867619,0.79832,2504.2,2504.1,27.1173]
[1749920867821,6.44628523,2504.4,2504.3,0.79826]
[1749920868117,0.79826,2504.3,2504.2,2.64377]
[1749920868616,0.79826,2504.3,2504.2,36.41277]
[1749920869016,0.79824,2504.4,2504.3,0.79823]
[1749920869322,0.79824,2504.4,2504.3,2.64373]
[1749920869521,0.79824,2504.4,2504.3,4.35073]
[1749920870116,4.00603,2504.5,2504.4,0.79823]
[1749920870422,4.00603,2504.5,2504.4,28.95773]
[1749920870624,6.44621523,2504.6,2504.4,28.1595]
[1749920870915,6.44621523,2504.6,2504.5,0.7982]
[1749920871116,0.79818,2504.6,2504.5,2.4839]
[1749920872222,5.64803523,2505.1,2504.5,1.6857]
[1749920872419,0.79812,2504.8,2504.7,0.7981]
[1749920872619,0.79808,2504.9,2504.8,0.79807]
[1749920872924,0.79808,2504.9,2504.8,28.93827]
[1749920873117,8.59089,2505.2,2504.8,28.1402]
[1749920873118,3.2078,2505.2,2504.8,28.1402]
[1749920873325,0.79807,2504.9,2504.8,28.1402]
[1749920873724,0.79807,2504.9,2504.8,1.8332]
[1749920874019,0.79813,2504.7,2504.6,1.8004]
[1749920874224,0.79813,2504.7,2504.6,35.5564]
[1749920874417,0.79813,2504.7,2504.6,36.35456]
[1749920875524,0.79811,2504.9,2504.8,0.79808]
[1749920875722,0.7981,2504.8,2504.7,1.6914]
[1749920875923,0.7981,2504.8,2504.7,2.48953]
[1749920876125,0.7981,2504.8,2504.7,1.6914]
[1749920876317,0.7981,2504.8,2504.7,2.48953]
[1749920876619,0.7981,2504.8,2504.7,1.6914]
[1749920876923,0.7981,2504.8,2504.7,27.9904]
[1749920877825,0.7981,2504.8,2504.7,28.78853]
[1749920878323,0.7981,2504.8,2504.7,27.9904]
[1749920878627,0.7981,2504.8,2504.7,35.4344]
[1749920879028,0.7981,2504.8,2504.7,7.45]
[1749920880818,3.5102,2504.9,2504.5,3.21379892]
[1749920881023,0.79816,2504.6,2504.5,3.21379892]
[1749920881225,0.79816,2504.6,2504.5,36.94879892]
[1749920881424,0.79816,2504.6,2504.5,37.74696892]
[1749920881624,5.64803523,2504.8,2504.5,37.74696892]
[1749920881625,0.79815,2504.7,2504.6,0.79813]
[1749920882825,6.44615523,2504.8,2504.7,0.79813]
[1749920883021,5.64803523,2504.8,2504.7,27.08013]
[1749920884528,0.86619268,2504.8,2504.7,27.08013]
[1749920885533,0.06809268,2504.8,2504.7,27.08013]
[1749920886428,2.07035238,2505.6,2504.7,31.282]
[1749920886630,1.7573,2505.6,2505.4,3.2078]
[1749920886830,0.7979,2505.5,2505.4,4.00571]
[1749920887032,0.79791,2505.4,2505.3,0.79794]
[1749920887233,0.79796,2505.3,2505.2,0.79795]
[1749920887531,1.99458,2505.7,2505.1,36.9308]
[1749920887734,0.7979,2505.5,2505.4,3.2078]
[1749920888135,0.7979,2505.5,2505.4,29.4778]
[1749920888337,0.7979,2505.5,2505.4,30.27571]
[1749920888632,0.7978,2505.8,2505.4,29.4778]
[1749920888831,1.99416,2506.2,2505.7,3.2078]
[1749920889029,0.79777,2505.9,2505.8,27.06575]
[1749920889234,0.79777,2505.9,2505.8,26.268]
[1749920889429,0.79777,2505.9,2505.8,28.92178]
[1749920890035,0.7976,2506.4,2506.3,0.79762]
[1749920890332,0.79766,2506.2,2506.1,0.00598683]
[1749920890745,0.79785,2505.6,2505.5,53.8113]
[1749920890937,0.79785,2505.6,2505.5,27.5503]
[1749920891136,0.79785,2505.6,2505.5,53.8103]
[1749920891735,0.79785,2505.6,2505.5,55.6663]
[1749920892838,0.79785,2505.6,2505.5,50.404]
[1749920893233,0.79785,2505.6,2505.5,52.2167]
[1749920893631,0.79785,2505.6,2505.5,50.398]
[1749920894138,0.79785,2505.6,2505.5,52.2107]
[1749920895440,0.79785,2505.6,2505.5,53.9489]
[1749920896332,0.79785,2505.6,2505.5,50.393]
[1749920896536,0.79788,2505.5,2505.4,3.2078]
[1749920896737,0.79791,2505.4,2505.3,0.00598683]
[1749920896938,0.79791,2505.4,2505.3,35.54808683]
[1749920897744,0.79791,2505.4,2505.3,36.34602683]
[1749920897945,0.79791,2505.4,2505.3,35.54808683]
[1749920898446,0.79791,2505.4,2505.3,2.65402683]
[1749920898649,0.79791,2505.4,2505.3,36.30702683]
[1749920898946,0.79791,2505.4,2505.3,35.50908683]
[1749920899345,0.79791,2505.4,2505.3,36.30702683]
[1749920899547,0.86600268,2505.4,2505.3,35.50908683]
[1749920899935,0.86600268,2505.4,2505.3,35.50308683]
[1749920900247,0.86600268,2505.4,2505.3,36.30102683]
[1749920901150,0.86600268,2505.4,2505.3,2.65402683]
[1749920901344,0.86600268,2505.4,2505.3,35.50308683]
[1749920901646,0.86600268,2505.4,2505.3,36.30102683]
[1749920901945,0.86600268,2505.4,2505.3,35.50308683]
[1749920902444,0.86600268,2505.4,2505.3,1.85608683]
[1749920902639,0.86600268,2505.4,2505.3,0.00598683]
[1749920903150,0.06809268,2505.4,2505.3,0.00598683]
[1749920903446,0.86600268,2505.4,2505.3,0.80392683]
[1749920903650,0.06809268,2505.4,2505.3,2.49142683]
[1749920904245,1.3579,2505.6,2505.5,0.79788]
[1749920904549,0.00595545,2505.8,2505.7,0.79781]
[1749920904747,0.00595545,2505.8,2505.7,27.02681]
[1749920905052,0.00595545,2505.8,2505.7,32.02681]
[1749920905247,0.00595545,2505.8,2505.6,3.4494]
[1749920905248,0.79781,2505.7,2505.6,3.4494]
[1749920905444,0.79781,2505.7,2505.6,29.6764]
[1749920905645,0.79781,2505.7,2505.6,30.47425]
[1749920905947,0.79781,2505.7,2505.6,1.6796]
[1749920906158,0.79785,2505.6,2505.5,26.225]
[1749920906449,0.8318762,2505.6,2505.5,26.225]
[1749920906650,0.86600268,2505.4,2505.3,8.21292683]
[1749920906851,0.06809268,2505.4,2505.3,34.43692683]
[1749920907354,0.10211888,2505.4,2505.3,36.21932683]
[1749920908354,0.10211888,2505.4,2505.3,41.21932683]
[1749920908555,1.3583,2505.6,2505.5,0.79788]
[1749920908753,1.3583,2505.6,2505.5,30.22668]
[1749920908955,1.3583,2505.6,2505.5,35.22668]
[1749920910556,0.7657,2505.6,2505.5,4.00568]
[1749920910755,0.7657,2505.6,2505.5,37.63068]
[1749920911353,1.56355,2505.6,2505.5,4.00568]
[1749920911559,0.7657,2505.6,2505.5,37.62668]
[1749920912258,0.79784,2505.7,2505.6,0.79785]
[1749920912552,0.79784,2505.7,2505.6,1.8347]
[1749920912755,0.80375545,2505.8,2505.7,0.79781]
[1749920912957,0.80374545,2505.8,2505.7,27.00981]
[1749920913156,0.00595545,2505.8,2505.7,27.00981]
[1749920913355,0.00595545,2505.8,2505.7,28.74741]
[1749920914654,0.80373545,2505.8,2505.7,27.9496]
[1749920914958,0.87182813,2505.8,2505.7,27.9496]
[1749920915154,0.87182813,2505.8,2505.7,35.3536]
[1749920916059,0.87182813,2505.8,2505.7,33.612]
[1749920916254,0.79781,2505.7,2505.6,4.38964]
[1749920916462,0.79781,2505.7,2505.6,37.2018]
[1749920917158,0.79781,2505.7,2505.6,1.8347]
[1749920917362,0.79788,2505.5,2505.4,1.7376]
[1749920917665,0.79788,2505.5,2505.4,27.9376]
[1749920918262,0.79788,2505.5,2505.4,28.73551]
[1749920918561,0.79788,2505.5,2505.4,29.6646]
[1749920919561,0.79788,2505.5,2505.4,3.4646]
[1749920919762,0.79788,2505.5,2505.4,29.6636]
[1749920920258,0.79788,2505.5,2505.4,30.46151]
[1749920920461,0.79787,2505.6,2505.5,0.79785]
[1749920920660,0.79787,2505.6,2505.5,5.67905]
[1749920921063,0.07404813,2505.8,2505.5,4.8812]
[1749920921262,0.87185813,2505.8,2505.7,0.79781]
[1749920921457,0.87185813,2505.8,2505.7,9.0814]
[1749920921864,0.87185813,2505.8,2505.7,7.408]
[1749920922164,0.79785,2505.6,2505.5,3.2078]
[1749920922459,0.79785,2505.6,2505.5,36.8078]
[1749920922657,0.79785,2505.6,2505.5,38.5313]
[1749920923355,0.79785,2505.6,2505.5,35.3235]
[1749920924262,3.15658357,2505.6,2505.5,36.12138]
[1749920924467,0.79785,2505.6,2505.5,35.3235]
[1749920924860,0.79785,2505.6,2505.5,36.12138]
[1749920925059,0.07404813,2505.8,2505.7,0.79781]
[1749920925269,0.87182813,2505.8,2505.7,30.19061]
[1749920928161,0.07404813,2505.8,2505.7,30.19061]
[1749920928354,0.87182813,2505.8,2505.7,30.19061]
[1749920929267,0.87182813,2505.8,2505.7,29.3928]
[1749920929768,0.87182813,2505.8,2505.7,31.1667]
[1749920930370,0.87182813,2505.8,2505.7,4.9817]
[1749920930574,0.87182813,2505.8,2505.7,38.5237]
[1749920931175,0.07404813,2505.8,2505.7,39.32151]
[1749920932565,0.07404813,2505.8,2505.7,5.77951]
[1749920932771,0.07404813,2505.8,2505.7,39.31851]
[1749920934266,0.87182813,2505.8,2505.7,4.9817]
[1749920934470,0.87182813,2505.8,2505.7,38.5177]
[1749920934663,0.87182813,2505.8,2505.7,4.9817]
[1749920935267,0.87182813,2505.8,2505.7,36.10271]
[1749920935762,0.87182813,2505.8,2505.7,2.57171]
[1749920935971,0.87182813,2505.8,2505.7,36.10171]
[1749920936471,0.87182813,2505.8,2505.7,2.57171]
[1749920936678,0.87182813,2505.8,2505.7,36.10071]
[1749920937181,0.87182813,2505.8,2505.7,35.3029]
[1749920937473,0.87182813,2505.8,2505.7,28.72871]
[1749920937668,0.87182813,2505.8,2505.7,35.2999]
[1749920937867,0.87182813,2505.8,2505.7,36.09771]
[1749920938379,0.87182813,2505.8,2505.7,2.57171]
[1749920938565,0.79781,2505.7,2505.6,3.2078]
[1749920938771,2.06853813,2505.8,2505.5,7.369]
[1749920939073,0.79788,2505.5,2505.4,32.30391]
[1749920939273,0.79788,2505.5,2505.4,58.45791]
[1749920939475,1.81444813,2505.8,2505.4,59.5053]
[1749920939673,0.79781,2505.7,2505.6,3.2078]
[1749920939875,0.79781,2505.7,2505.6,31.2061]
[1749920940280,0.79781,2505.7,2505.6,32.00395]
[1749920940681,0.07404813,2505.8,2505.7,0.79781]
[1749920940873,0.07404813,2505.8,2505.7,2.53961]
[1749920944381,0.87182813,2505.8,2505.7,2.53961]
[1749920944588,0.07404813,2505.8,2505.7,2.53961]
[1749920946282,0.87182813,2505.8,2505.7,2.53961]
[1749920946981,0.87182813,2505.8,2505.7,35.2498]
[1749920947184,0.07404813,2505.8,2505.7,36.04761]
[1749920952085,0.07404813,2505.8,2505.7,36.03461]
[1749920952283,0.87182813,2505.8,2505.7,36.03461]
[1749920952483,0.07404813,2505.8,2505.7,36.03461]
[1749920952784,0.87182813,2505.8,2505.7,36.03461]
[1749920953186,0.87182813,2505.8,2505.7,36.03261]
[1749920953386,0.87182813,2505.8,2505.7,36.02961]
[1749920955085,0.07404813,2505.8,2505.7,37.62291116]
[1749920956884,0.07404813,2505.8,2505.7,36.02961]
[1749920957288,0.07404813,2505.8,2505.7,38.41956174]
[1749920957491,4.5519,2505.9,2505.8,0.79778]
[1749920957686,4.5519,2505.9,2505.8,6.71874392]
[1749920957887,4.00545,2506.3,2506.2,0.79766]
[1749920958187,4.00545,2506.3,2506.2,34.27766]
[1749920958384,4.00545,2506.3,2506.2,0.79766]
[1749920958589,0.79766,2506.2,2506.1,27.8973]
[1749920959594,0.79766,2506.2,2506.1,28.69497]
[1749920959791,0.79772,2506.0,2505.9,5.59949655]
[1749920959986,0.79775,2505.9,2505.8,0.79778]
[1749920960186,0.79775,2505.9,2505.8,26.107]
[1749920960396,0.79775,2505.9,2505.8,26.90478]
[1749920960598,0.79775,2505.9,2505.8,2.59188]
[1749920960788,0.79775,2505.9,2505.8,1.7941]
[1749920960990,0.79788,2505.5,2505.4,2.39185655]
[1749920961288,1.99446,2505.8,2505.4,27.69897655]
[1749920961289,1.8063,2505.8,2505.4,27.69897655]
[1749920961490,0.3023,2506.0,2505.4,29.49307655]
[1749920961797,0.79778,2505.9,2505.8,0.79778]
[1749920961989,0.79775,2505.9,2505.8,1.8344]
[1749920962191,0.79778,2505.8,2505.7,37.43761]
[1749920962395,0.79778,2505.8,2505.7,39.27201]
[1749920962591,0.79778,2505.8,2505.7,39.27199]
[1749920962792,1.10003,2506.0,2505.9,0.79775]
[1749920963093,1.10003,2506.0,2505.7,38.4742]
[1749920963094,0.79778,2505.8,2505.7,5.83999]
[1749920963290,0.79778,2505.8,2505.7,39.26999]
[1749920963593,0.3023,2506.0,2505.7,38.4722]
[1749920963788,0.79778,2505.9,2505.8,35.2624]
[1749920963988,0.3023,2506.0,2505.7,3.2078]
[1749920963989,0.79778,2505.8,2505.7,3.2078]
[1749920964691,0.79785,2505.6,2505.5,7.329]
[1749920965096,0.79785,2505.6,2505.5,33.425]
[1749920965797,0.79785,2505.6,2505.5,34.22288]
[1749920965996,4.30974,2505.7,2505.6,0.79785]
[1749920966294,0.79785,2505.6,2505.5,34.22285]
[1749920966495,4.30974,2505.7,2505.6,0.79785]
[1749920966999,0.79785,2505.6,2505.5,34.22286]
[1749920967296,0.79785,2505.6,2505.5,33.425]
[1749920967498,0.79788,2505.5,2505.4,1.8473]
[1749920967697,0.79788,2505.5,2505.4,36.06621]
[1749920968893,0.79791,2505.5,2505.4,33.421]
[1749920969100,0.79791,2505.5,2505.4,34.21891]
[1749920969993,0.79791,2505.5,2505.4,33.421]
[1749920970193,0.79791,2505.5,2505.4,33.418]
[1749920970996,0.79791,2505.5,2505.4,34.21591]
[1749920971199,5.64803523,2505.6,2505.5,0.79788]
[1749920971703,6.44588523,2505.6,2505.5,2.53278]
[1749920972205,5.64803523,2505.6,2505.5,5.74058]
[1749920972905,5.64803523,2505.6,2505.5,39.15158]
[1749920974005,5.64803523,2505.6,2505.5,5.74058]
[1749920974205,5.64803523,2505.6,2505.5,39.15058]
[1749920975304,5.64803523,2505.6,2505.5,5.74058]
[1749920975606,5.71612791,2505.6,2505.5,39.14558]
[1749920976307,0.06809268,2505.6,2505.5,44.14558]
[1749920977505,0.06809268,2505.6,2505.5,39.14558]
[1749920978910,0.06809268,2505.6,2505.5,8.12922878]
[1749920979107,0.06809268,2505.6,2505.5,41.52622878]
[1749920979307,0.06809268,2505.6,2505.5,39.13758]
[1749920979712,0.06809268,2505.6,2505.5,41.52622878]
[1749920982114,0.06809268,2505.6,2505.5,39.13758]
[1749920983312,0.06809268,2505.6,2505.5,41.52622878]
[1749920984618,0.06809268,2505.6,2505.5,39.13758]
[1749920986715,0.06809268,2505.6,2505.5,41.52622878]
[1749920988512,1.10002,2506.0,2505.9,0.79775]
[1749920988718,1.10002,2506.0,2505.9,26.84475]
[1749920989117,1.10002,2506.0,2505.9,28.66695]
[1749920990618,1.10002,2506.0,2505.9,28.64603]
[1749920991222,0.3023,2506.0,2505.9,28.64603]
[1749920992322,1.10002,2506.0,2505.9,28.64603]
[1749920993822,0.3023,2506.0,2505.9,28.64603]
[1749920994221,1.10002,2506.0,2505.9,28.64603]
[1749920994424,0.3023,2506.0,2505.9,28.64603]
[1749920994615,0.3023,2506.0,2505.9,35.93603]
[1749920995223,0.3023,2506.0,2505.9,37.52886437]
[1749920995412,5.64803523,2506.6,2506.4,0.79759]
[1749920995623,0.79759,2506.5,2506.4,26.53137107]
[1749920995924,0.84601869,2506.5,2506.4,26.53137107]
[1749920996116,0.84601869,2506.5,2506.4,29.73917107]
[1749920996317,0.04842869,2506.5,2506.4,29.73917107]
[1749920997415,0.04842869,2506.5,2506.4,33.29397107]
[1749920997620,0.84598869,2506.5,2506.4,33.29397107]
[1749920998520,0.04842869,2506.5,2506.4,7.26097107]
[1749920998823,0.84598869,2506.5,2506.4,40.57397107]
[1749920999217,0.84598869,2506.5,2506.4,7.26097107]
[1749920999523,0.04842869,2506.5,2506.4,7.26097107]
[1749921000022,0.84598869,2506.5,2506.4,40.57097107]
[1749921000815,0.04842869,2506.5,2506.4,40.57097107]
[1749921001016,0.04842869,2506.5,2506.4,40.56897107]
[1749921001629,0.84598869,2506.5,2506.4,40.56897107]
[1749921002119,0.84598869,2506.5,2506.4,3.2078]
[1749921002321,0.04842869,2506.5,2506.0,8.49903437]
[1749921002527,0.04842869,2506.5,2506.0,7.70391]
[1749921002528,1.711,2506.4,2506.0,7.70391]
[1749921002824,0.79769,2506.1,2506.0,7.70391]
[1749921003020,0.79769,2506.1,2506.0,41.00491]
[1749921003228,0.79769,2506.1,2506.0,3.2078]
[1749921003530,0.79769,2506.1,2506.0,29.2188]
[1749921003724,0.79769,2506.1,2506.0,30.01652]
[1749921003924,0.84611869,2506.1,2506.0,30.01652]
[1749921004225,0.04842869,2506.1,2506.0,31.86932]
[1749921004426,0.84611869,2506.1,2506.0,5.85832]
[1749921004622,0.84611869,2506.1,2506.0,38.3576]
[1749921004817,0.84611869,2506.1,2506.0,29.2158]
[1749921005024,0.91421137,2506.1,2506.0,29.2158]
[1749921005526,2.60481137,2506.1,2506.0,29.2158]
[1749921005925,2.60481137,2506.1,2506.0,29.2128]
[1749921006124,2.60481137,2506.1,2506.0,3.2078]
[1749921007226,0.79775,2505.9,2505.8,7.289]
[1749921007431,0.79775,2505.9,2505.8,33.292]
[1749921008024,0.84617869,2505.9,2505.8,33.292]
[1749921008930,0.79781,2505.7,2505.6,3.2078]
[1749921010135,0.84623869,2505.7,2505.6,3.2078]
[1749921011244,0.79791,2505.4,2505.3,0.00598683]
[1749921011734,0.79791,2505.4,2505.3,1.73188683]
[1749921011934,0.79791,2505.4,2505.3,0.00598683]
[1749921012134,0.84633869,2505.4,2505.3,0.00598683]
[1749921012330,0.79794,2505.3,2505.2,29.18398683]
[1749921012639,0.79794,2505.3,2505.2,3.18998683]
[1749921013037,2.63174,2505.3,2505.2,3.18998683]
[1749921013242,2.68016869,2505.3,2505.2,3.18998683]
[1749921016441,0.79801,2505.1,2505.0,0.00598683]
[1749921017238,0.84643869,2505.1,2505.0,0.00598683]
[1749921018450,11.49447392,2505.1,2505.0,0.00598683]
[1749921018646,1.99519,2504.9,2504.5,12.3298]
[1749921018847,0.79816,2504.6,2504.5,12.3298]
[1749921019048,0.79816,2504.6,2504.5,13.128]
[1749921019244,0.04842869,2504.6,2504.5,5.836]
[1749921019450,0.04842869,2504.6,2504.5,39.114]
[1749921020257,0.84658869,2504.6,2504.5,5.836]
[1749921020554,0.04842869,2504.6,2504.5,39.113]
[1749921023146,0.06809268,2505.1,2505.0,0.79804]
[1749921023348,0.06809268,2505.1,2505.0,37.23484]
[1749921026460,0.06809268,2505.1,2505.0,39.06094]
[1749921026755,0.00598683,2505.5,2505.4,0.79791]
[1749921026955,0.00598683,2505.5,2505.4,37.22771]
[1749921027260,0.00598683,2505.5,2505.4,4.00571]
[1749921027553,0.00598683,2505.5,2505.4,37.22671]
[1749921028155,0.79767,2506.2,2505.7,1.99453]
[1749921028358,0.79769,2506.1,2506.0,0.79771]
[1749921028960,0.79775,2505.9,2505.8,35.84186]
[1749921029149,0.79778,2505.8,2505.7,3.2078]
[1749921029550,0.79778,2505.8,2505.7,29.1708]
[1749921030853,0.79781,2505.7,2505.6,0.00598683]
[1749921031253,0.79781,2505.7,2505.6,0.80383683]
[1749921031454,0.79781,2505.7,2505.6,2.59773683]
[1749921031656,0.79781,2505.7,2505.6,1.79988683]
[1749921032162,0.79781,2505.7,2505.6,2.59773683]
[1749921032361,0.79781,2505.7,2505.6,1.79988683]
[1749921032764,0.79781,2505.7,2505.6,2.59773683]
[1749921032959,0.79781,2505.7,2505.6,1.79988683]
[1749921033560,0.79781,2505.7,2505.6,2.59773683]
[1749921033761,0.79778,2505.9,2505.8,0.79777]
[1749921034059,0.80369683,2506.1,2506.0,0.79772]
[1749921034260,0.00598683,2506.1,2506.0,0.79772]
[1749921034456,0.00598683,2506.1,2506.0,4.41782]
[1749921034659,0.80367683,2506.1,2506.0,5.3413]
[1749921034957,0.79772,2506.0,2505.9,25.953]
[1749921035153,0.79775,2505.9,2505.8,25.951]
[1749921035457,0.79778,2505.8,2505.7,33.53941]
[1749921035658,0.79778,2505.8,2505.7,30.33161]
[1749921035856,0.79778,2505.8,2505.7,29.5338]
[1749921036059,0.79781,2505.7,2505.6,3.21378683]
[1749921036259,0.79781,2505.7,2505.6,25.95498683]
[1749921036457,0.86590268,2505.7,2505.6,27.75878683]
[1749921036660,0.86590268,2505.7,2505.6,1.80978683]
[1749921038864,0.86590268,2505.7,2505.6,1.77818683]
[1749921039563,0.06809268,2505.7,2505.6,2.57603683]
[1749921039764,0.86590268,2505.7,2505.6,2.57603683]
[1749921039968,0.06809268,2505.7,2505.6,2.57603683]
[1749921040465,0.86590268,2505.7,2505.6,2.57603683]
[1749921041964,1.99462,2505.6,2504.6,3.1742134]
[1749921042160,3.2078,2505.3,2505.1,0.79799]
[1749921042365,0.79794,2505.3,2505.2,3.4571]
[1749921042564,0.7981,2504.8,2504.7,1.7894]
[1749921043871,0.7981,2504.8,2504.7,3.5174]
[1749921044974,0.7981,2504.8,2504.7,1.728]
[1749921046874,0.79813,2504.7,2504.6,1.7291]
[1749921047977,4.00593,2504.7,2504.6,1.7291]
[1749921048377,4.00593,2504.7,2504.6,3.5578]
[1749921048681,3.2078,2505.1,2504.6,3.5578]
[1749921048978,0.7981,2504.8,2504.7,27.7567]
[1749921051279,0.7981,2504.8,2504.7,28.55483]
[1749921052580,0.7981,2504.8,2504.7,27.7567]
[1749921055382,0.7981,2504.8,2504.7,1.8287]
[1749921056581,0.7981,2504.8,2504.7,1.7853]
[1749921058181,0.7981,2504.9,2504.8,0.79808]
[1749921058675,3.2078,2505.1,2504.7,1.7853]
[1749921058987,4.00581,2505.1,2505.0,0.79804]
[1749921059374,0.79807,2505.0,2504.9,0.79805]
[1749921059783,0.79807,2505.0,2504.9,2.48095]
[1749921060283,0.79799,2505.2,2505.1,0.798]
[1749921060583,0.798,2505.2,2505.1,0.79801]
[1749921060782,0.79799,2505.2,2505.1,0.79801]
[1749921060984,0.79799,2505.2,2505.1,2.48091]
[1749921061181,3.2078,2505.5,2505.4,0.79791]
[1749921061476,3.2078,2505.9,2505.8,0.79778]
[1749921061680,0.79779,2505.8,2505.7,0.79779]
[1749921061879,4.00557,2505.9,2505.8,0.79778]
[1749921062071,4.00557,2505.9,2505.8,2.48068]
[1749921062474,3.2078,2505.9,2505.8,2.48068]
[1749921063383,3.2078,2505.9,2505.8,4.15998]
[1749921064181,4.00555,2505.9,2505.8,3.3622]
[1749921064484,4.00555,2505.9,2505.8,1.6829]
[1749921064879,4.07364268,2505.9,2505.8,1.6829]
[1749921065182,3.27589268,2505.9,2505.1,3.2078]
[1749921065485,0.79797,2505.2,2505.1,8.9505]
[1749921065686,0.79797,2505.2,2505.1,10.7569]
[1749921065873,0.79797,2505.2,2505.1,9.0204]
[1749921066081,0.79807,2504.9,2504.8,8.9505]
[1749921066279,0.79807,2504.9,2504.8,10.7569]
[1749921066785,3.8184,2505.3,2504.8,11.55499]
[1749921066986,0.79807,2504.9,2504.8,11.55499]
[1749921067481,0.79807,2504.9,2504.8,10.7569]
[1749921067683,0.79807,2504.9,2504.8,11.555]
[1749921067887,3.8184,2505.3,2504.8,10.7569]
[1749921068184,0.79807,2504.9,2504.8,11.55499]
[1749921068581,3.2078,2505.6,2504.8,10.7569]
[1749921068788,0.79804,2505.0,2504.9,0.79804]
[1749921068978,0.79789,2505.5,2505.4,0.7979]